[Event "68th Warsaw-ch-A 2019"]
[Site "Warsaw"]
[Date "2019.11.18"]
[Round "8.10"]
[White "Grochowski, Kosma"]
[Black "Derylo, Kamil"]
[Result "0-1"]
[ECO "C83"]
[WhiteElo "1920"]
[BlackElo "1969"]
[Annotator "NA RC"]
[PlyCount "102"]
[EventDate "2019.11.14"]
[EventType "swiss"]
[EventCountry "POL"]
[SourceTitle "playchess.com"]
[Source "ChessBase"]
[SourceQuality "1"]
[TimeControl "5400+30"]

1. e4 {[%emt 0:00:00]} e5 {[%emt 0:00:00]} 2. Nf3 {[%emt 0:00:00]} Nc6 {[%emt 0:00:00]} 3. Bb5 {[%emt 0:00:00]} a6 {[%emt 0:00:00]} 4. Ba4 {[%emt 0:00:00]} Nf6 {[%emt 0:00:00]} 5. O-O {[%emt 0:00:01]} Nxe4 {[%emt 0:00:01]} 6. d4 {[%emt 0:00:48]} b5 $14 {[%emt 0:00:15]} 7. Bb3 {[%emt 0:00:09]} d5 {[%emt 0:00:06]} 8. dxe5 {[%emt 0:08:39]} Be6 {[%emt 0:00:52]} 9. c3 {[%emt 0:01:49]} Be7 {[%emt 0:00:17]} 10. Re1 {[%emt 0:04:12]} O-O {[%emt 0:04:50]} 11. Nbd2 {[%emt 0:03:29]} Nc5 {[%emt 0:01:05]} 12. Bc2 {[%emt 0:01:39]} d4 {[%emt 0:00:58]} 13. cxd4 {[%emt 0:07:53]} Nxd4 {[%emt 0:01:30]} 14. Nxd4 {[%emt 0:00:02]} Qxd4 {[%emt 0:00:08]} 15. Nf1 {[%emt 0:02:51]} Rad8 {[%emt 0:04:50]} 16. Qxd4 {[%emt 0:01:15]} Rxd4 {[%emt 0:00:06]} 17. Be3 {[%emt 0:00:09]} Rd7 {[%emt 0:00:51]} 18. Rec1 {[%emt 0:19:21]} h6 {[%emt 0:05:50]} 19. f4 {[%emt 0:00:29]} f5 {[%emt 0:13:20]} 20. g3 {[%emt 0:14:30]} g5 {[%emt 0:03:43]} 21. Kf2 {[%emt 0:07:01]} Bd5 {[%emt 0:03:09]} 22. Nd2 {[%emt 0:01:23]} Kg7 {[%emt 0:01:26]} 23. Ke2 {[%emt 0:07:19]} Ne6 {[%emt 0:01:48]} 24. a4 {[%emt 0:04:33]} c5 {[%emt 0:07:40]} 25. axb5 {[%emt 0:00:02]} axb5 {[%emt 0:00:06]} 26. Ra5 {[%emt 0:00:33]} Rb7 {[%emt 0:01:42]} 27. Rca1 {[%emt 0:00:26]} g4 {[%emt 0:02:34]} 28. Ra7 {[%emt 0:03:35]} Kg6 {[%emt 0:00:44]} 29. Rxb7 {[%emt 0:03:56]} Bxb7 {[%emt 0:00:02]} 30. Ra7 {[%emt 0:00:19]} Rb8 {[%emt 0:01:00]} 31. b3 {[%emt 0:03:37]} Bd8 {[%emt 0:01:00]} 32. Bd3 {[%emt 0:01:18]} Bb6 {[%emt 0:01:39]} 33. Ra1 {[%emt 0:00:02]} Bc6 {[%emt 0:01:46]} 34. Ke1 {[%emt 0:00:51]} Rd8 {[%emt 0:02:51]} 35. Be2 {[%emt 0:01:29]} h5 {[%emt 0:01:18]} 36. Ra6 {[%emt 0:00:28]} Rb8 {[%emt 0:00:10]} 37. Nb1 {[%emt 0:00:55]} Nc7 {[%emt 0:00:57]} 38. Ra2 {[%emt 0:00:24]} Nd5 {[%emt 0:07:39]} 39. Bd2 {[%emt 0:00:35]} h4 {[%emt 0:02:12]} 40. Ra6 {[%emt 0:01:28]} hxg3 {[%emt 0:00:21]} 41. hxg3 {[%emt 0:00:02]} Nc7 {[%emt 0:00:10]} 42. Ra2 {[%emt 0:01:12]} Rh8 {[%emt 0:00:14]} 43. Bf1 {[%emt 0:01:02]} Rh2 {[%emt 0:02:47]} 44. Nc3 {[%emt 0:00:29]} c4 {[%emt 0:05:45]} 45. Bc1 {[%emt 0:01:40]} Rxa2 {[%emt 0:01:03]} 46. Nxa2 {[%emt 0:00:01]} cxb3 {[%emt 0:00:42]} 47. Nc3 {[%emt 0:00:30]} Ba5 {[%emt 0:03:12]} 48. Bb2 {[%emt 0:00:33]} Nd5 {[%emt 0:00:44]} 49. Kd2 {[%emt 0:00:02]} Nxc3 {[%emt 0:00:40]} 50. Bxc3 {[%emt 0:00:02]} b2 {[%emt 0:01:44]} 51. Bd3 {[%emt 0:01:32]} Be4 {[%emt 0:00:34]} 0-1

[Event "68th Warsaw-ch-A 2019"]
[Site "Warsaw"]
[Date "2019.11.19"]
[Round "9.2"]
[White "Kowalski, Igor"]
[Black "Chomczyk, Marek"]
[Result "1-0"]
[ECO "A59"]
[WhiteElo "2346"]
[BlackElo "2282"]
[Annotator "ChessBase"]
[PlyCount "75"]
[EventDate "2019.11.14"]
[EventType "swiss"]
[EventCountry "POL"]
[SourceTitle "playchess.com"]
[Source "ChessBase"]
[SourceQuality "1"]
[TimeControl "5400+30"]

1. d4 {[%emt 0:00:00]} Nf6 {[%emt 0:00:00]} 2. c4 {[%emt 0:00:00]} c5 {[%emt 0:00:00]} 3. d5 {[%emt 0:00:00]} b5 {[%emt 0:00:05]} 4. cxb5 {[%emt 0:00:00]} a6 {[%emt 0:00:11]} 5. bxa6 {[%emt 0:00:00]} g6 {[%emt 0:00:13]} 6. Nc3 {[%emt 0:00:00]} Bxa6 {[%emt 0:00:10]} 7. e4 {[%emt 0:00:00]} Bxf1 {[%emt 0:00:39]} 8. Kxf1 {[%emt 0:00:04]} d6 {[%emt 0:00:54]} 9. g3 {[%emt 0:00:04]} Bg7 {[%emt 0:00:17]} 10. Kg2 {[%emt 0:00:04]} O-O {[%emt 0:00:22]} 11. Nf3 {[%emt 0:00:04]} Nbd7 {[%emt 0:00:25]} 12. a4 {[%emt 0:01:18]} Qb6 {[%emt 0:01:21]} 13. Nd2 {[%emt 0:00:47]} Rfb8 {[%emt 0:00:46]} 14. Ra3 {[%emt 0:04:04]} Qb4 {[%emt 0:07:43]} 15. Qe2 {[%emt 0:01:53]} Ne8 {[%emt 0:02:13]} 16. h4 {[%emt 0:02:26]} Qb7 {[%emt 0:09:12]} 17. h5 {[%emt 0:02:42]} Qa6 {[%emt 0:01:03]} 18. Nb5 {[%emt 0:17:22]} Nc7 {[%emt 0:04:26]} 19. hxg6 {[%emt 0:00:13]} hxg6 {[%emt 0:00:15]} 20. Nb1 {[%emt 0:16:57]} Nxb5 {[%emt 0:08:45]} 21. axb5 {[%emt 0:00:12]} Qb7 {[%emt 0:00:16]} 22. Bh6 {[%emt 0:02:15]} Rxa3 {[%emt 0:02:31]} 23. Nxa3 {[%emt 0:00:15]} Nf6 {[%emt 0:01:39]} 24. Bxg7 {[%emt 0:11:22]} Kxg7 {[%emt 0:00:08]} 25. f3 {[%emt 0:00:09]} Kf8 {[%emt 0:05:49]} 26. Qd2 {[%emt 0:01:13]} Ke8 {[%emt 0:02:58]} 27. Rh8+ {[%emt 0:00:29]} Kd7 {[%emt 0:00:06]} 28. Rxb8 {[%emt 0:00:04]} Qxb8 {[%emt 0:00:06]} 29. Qa5 {[%emt 0:00:03]} e6 {[%emt 0:03:20]} 30. b6 {[%emt 0:02:41]} Ke7 {[%emt 0:05:10]} 31. Nc4 {[%emt 0:04:09]} Nd7 {[%emt 0:02:05]} 32. Qa7 {[%emt 0:02:19]} f5 {[%emt 0:00:31]} 33. Qc7 {[%emt 0:04:07]} g5 {[%emt 0:01:39]} 34. dxe6 {[%emt 0:01:20]} Kxe6 {[%emt 0:00:15]} 35. exf5+ {[%emt 0:00:03]} Kd5 {[%emt 0:00:19]} 36. Qxd7 {[%emt 0:01:43]} Kxc4 {[%emt 0:00:05]} 37. b7 {[%emt 0:00:05]} Qh8 {[%emt 0:00:38]} 38. Qa4+ {[%emt 0:00:26]} 1-0

[Event "68th Warsaw-ch-A 2019"]
[Site "Warsaw"]
[Date "2019.11.19"]
[Round "9.3"]
[White "Mis, Mieszko"]
[Black "Sliwerski, Radoslaw"]
[Result "1-0"]
[ECO "A06"]
[WhiteElo "2328"]
[BlackElo "2091"]
[Annotator "ChessBase"]
[PlyCount "39"]
[EventDate "2019.11.14"]
[EventType "swiss"]
[EventCountry "POL"]
[SourceTitle "playchess.com"]
[Source "ChessBase"]
[SourceQuality "1"]
[TimeControl "5400+30"]

1. Nf3 {[%emt 0:00:00]} d5 {[%emt 0:03:45]} 2. g3 {[%emt 0:00:00]} e6 {[%emt 0:00:13]} 3. Bg2 {[%emt 0:00:17]} Nf6 {[%emt 0:00:02]} 4. O-O {[%emt 0:01:05]} c5 {[%emt 0:00:39]} 5. d4 {[%emt 0:01:25]} Nc6 {[%emt 0:00:24]} 6. c4 {[%emt 0:01:00]} dxc4 {[%emt 0:00:59]} 7. Ne5 {[%emt 0:01:47]} Nxe5 {[%emt 0:06:20]} 8. dxe5 {[%emt 0:00:10]} Qxd1 {[%emt 0:06:55]} 9. Rxd1 {[%emt 0:00:03]} Nd7 {[%emt 0:01:06]} 10. Na3 {[%emt 0:04:19]} Be7 {[%emt 0:03:48]} 11. Nxc4 {[%emt 0:01:37]} Rb8 {[%emt 0:02:49]} 12. a4 {[%emt 0:11:05]} O-O {[%emt 0:07:36]} 13. a5 {[%emt 0:06:44]} Rd8 {[%emt 0:09:33]} 14. Be3 {[%emt 0:03:56]} Kf8 {[%emt 0:03:39]} 15. b4 {[%emt 0:08:02]} b5 {[%emt 0:10:58]} 16. axb6 {[%emt 0:03:48]} axb6 {[%emt 0:00:27]} 17. b5 {[%emt 0:00:16]} Bb7 {[%emt 0:02:31]} 18. Bc6 {[%emt 0:00:10]} Bc8 {[%emt 0:05:22]} 19. Ra7 {[%emt 0:00:29]} Ke8 {[%emt 0:00:02]} 20. h4 {[%emt 0:00:21]} 1-0

[Event "68th Warsaw-ch-A 2019"]
[Site "Warsaw"]
[Date "2019.11.19"]
[Round "9.4"]
[White "Wiech, Grzegorz"]
[Black "Praczukowski, Stanislaw"]
[Result "0-1"]
[ECO "C68"]
[WhiteElo "2219"]
[BlackElo "2069"]
[Annotator "ChessBase"]
[PlyCount "124"]
[EventDate "2019.11.14"]
[EventType "swiss"]
[EventCountry "POL"]
[SourceTitle "playchess.com"]
[Source "ChessBase"]
[SourceQuality "1"]
[TimeControl "5400+30"]

1. e4 {[%emt 0:00:52]} e5 {[%emt 0:00:00]} 2. Nf3 {[%emt 0:00:08]} Nc6 {[%emt 0:00:00]} 3. Bb5 {[%emt 0:00:36]} a6 {[%emt 0:00:00]} 4. Bxc6 {[%emt 0:00:26]} dxc6 {[%emt 0:00:00]} 5. O-O {[%emt 0:00:10]} Bg4 {[%emt 0:00:09]} 6. h3 {[%emt 0:00:08]} h5 {[%emt 0:00:06]} 7. d3 {[%emt 0:00:08]} Qf6 {[%emt 0:00:09]} 8. Be3 {[%emt 0:00:11]} Bxf3 {[%emt 0:00:27]} 9. Qxf3 {[%emt 0:00:08]} Qxf3 {[%emt 0:00:06]} 10. gxf3 {[%emt 0:00:08]} Bd6 {[%emt 0:01:00]} 11. Nd2 {[%emt 0:00:50]} Ne7 {[%emt 0:01:01]} 12. Kh2 {[%emt 0:06:53]} f6 {[%emt 0:16:10]} 13. h4 {[%emt 0:00:58]} Ng6 {[%emt 0:05:21]} 14. Kh3 {[%emt 0:03:12]} Kf7 {[%emt 0:03:17]} 15. Rg1 {[%emt 0:02:12]} Nf8 {[%emt 0:06:41]} 16. Kg3 {[%emt 0:07:24]} Ne6 {[%emt 0:01:15]} 17. Nc4 {[%emt 0:00:21]} g5 {[%emt 0:06:30]} 18. Kh3 {[%emt 0:01:13]} Rhg8 {[%emt 0:02:22]} 19. Rg2 {[%emt 0:01:25]} b5 {[%emt 0:05:35]} 20. Na5 {[%emt 0:00:59]} c5 {[%emt 0:01:06]} 21. Rag1 {[%emt 0:12:27]} Nf4+ {[%emt 0:03:02]} 22. Bxf4 {[%emt 0:00:09]} gxf4 {[%emt 0:00:11]} 23. Rxg8 {[%emt 0:11:06]} Rxg8 {[%emt 0:00:27]} 24. Ra1 {[%emt 0:12:24]} c4 {[%emt 0:10:29]} 25. dxc4 {[%emt 0:05:55]} Bc5 {[%emt 0:00:22]} 26. Rf1 {[%emt 0:05:02]} Bb6 {[%emt 0:04:48]} 27. b4 {[%emt 0:07:28]} Rd8 {[%emt 0:16:02]} 28. Nb7 {[%emt 0:14:37]} Rb8 {[%emt 0:00:35]} 29. c5 {[%emt 0:01:03]} Rxb7 {[%emt 0:00:15]} 30. cxb6 {[%emt 0:00:06]} Rxb6 {[%emt 0:01:25]} 31. Rc1 {[%emt 0:00:46]} Rc6 {[%emt 0:01:34]} 32. c3 {[%emt 0:01:11]} Ke6 {[%emt 0:05:06]} 33. Kg2 {[%emt 0:00:15]} Rd6 {[%emt 0:01:30]} 34. c4 {[%emt 0:01:32]} Kd7 {[%emt 0:00:07]} 35. cxb5 {[%emt 0:00:32]} axb5 {[%emt 0:00:05]} 36. Rc3 {[%emt 0:00:25]} Rd2 {[%emt 0:01:07]} 37. a3 {[%emt 0:00:15]} c6 {[%emt 0:01:05]} 38. Kf1 {[%emt 0:00:17]} Rd1+ {[%emt 0:00:22]} 39. Kg2 {[%emt 0:01:51]} Ra1 {[%emt 0:00:19]} 40. Rd3+ {[%emt 0:00:19]} Kc7 {[%emt 0:00:08]} 41. Kh2 {[%emt 0:00:24]} Rc1 {[%emt 0:04:26]} 42. Kg2 {[%emt 0:00:20]} Rc4 {[%emt 0:01:49]} 43. Kf1 {[%emt 0:00:14]} Rc1+ {[%emt 0:00:49]} 44. Kg2 {[%emt 0:01:23]} Rc4 {[%emt 0:00:17]} 45. Kf1 {[%emt 0:00:11]} Rc1+ {[%emt 0:02:06]} 46. Kg2 {[%emt 0:00:15]} c5 {[%emt 0:01:48]} 47. bxc5 {[%emt 0:00:28]} Rxc5 {[%emt 0:00:04]} 48. Kf1 {[%emt 0:01:40]} Rc1+ {[%emt 0:00:11]} 49. Kg2 {[%emt 0:00:30]} Ra1 {[%emt 0:00:26]} 50. Kh2 {[%emt 0:00:23]} Kc6 {[%emt 0:00:21]} 51. Rc3+ {[%emt 0:00:18]} Kb6 {[%emt 0:00:48]} 52. Kg2 {[%emt 0:00:49]} Ra2 {[%emt 0:01:19]} 53. Kg1 {[%emt 0:01:11]} Ka5 {[%emt 0:00:45]} 54. Rb3 {[%emt 0:00:16]} Ka4 {[%emt 0:00:18]} 55. Rb4+ {[%emt 0:00:09]} Ka5 {[%emt 0:00:04]} 56. Rb3 {[%emt 0:00:07]} Rc2 {[%emt 0:00:38]} 57. Kg2 {[%emt 0:01:09]} Rc5 {[%emt 0:00:05]} 58. Rd3 {[%emt 0:01:41]} Ka4 {[%emt 0:00:11]} 59. Rd6 {[%emt 0:00:42]} Kxa3 {[%emt 0:00:12]} 60. Rxf6 {[%emt 0:00:20]} b4 {[%emt 0:00:19]} 61. Ra6+ {[%emt 0:00:22]} Kb2 {[%emt 0:00:15]} 62. Rd6 {[%emt 0:00:28]} Kc3 {[%emt 0:00:24]} 0-1

[Event "68th Warsaw-ch-A 2019"]
[Site "Warsaw"]
[Date "2019.11.19"]
[Round "9.5"]
[White "Malec, Sebastian"]
[Black "Mickiewicz, Piotr"]
[Result "1-0"]
[ECO "B85"]
[WhiteElo "2069"]
[BlackElo "2216"]
[Annotator "ChessBase"]
[PlyCount "83"]
[EventDate "2019.11.14"]
[EventType "swiss"]
[EventCountry "POL"]
[SourceTitle "playchess.com"]
[Source "ChessBase"]
[SourceQuality "1"]
[TimeControl "5400+30"]

1. e4 {[%emt 0:11:25]} c5 {[%emt 0:00:00]} 2. Nf3 {[%emt 0:00:04]} e6 {[%emt 0:01:00]} 3. d4 {[%emt 0:00:08]} cxd4 {[%emt 0:00:09]} 4. Nxd4 {[%emt 0:00:04]} Nf6 {[%emt 0:00:43]} 5. Nc3 {[%emt 0:00:05]} d6 {[%emt 0:00:11]} 6. Be2 {[%emt 0:00:15]} a6 {[%emt 0:00:50]} 7. O-O {[%emt 0:00:24]} Qc7 {[%emt 0:00:12]} 8. a4 {[%emt 0:00:49]} b6 {[%emt 0:00:59]} 9. Bg5 {[%emt 0:04:02]} Nbd7 {[%emt 0:04:01]} 10. Re1 {[%emt 0:16:55]} Be7 {[%emt 0:11:27]} 11. Bh5 {[%emt 0:13:44]} O-O {[%emt 0:08:19]} 12. Re3 {[%emt 0:01:20]} g6 {[%emt 0:13:07]} 13. Rg3 {[%emt 0:11:08]} Re8 {[%emt 0:12:55]} 14. Bf3 {[%emt 0:08:26]} Bb7 {[%emt 0:03:23]} 15. h4 {[%emt 0:02:14]} Ne5 {[%emt 0:08:19]} 16. h5 {[%emt 0:03:23]} Rad8 {[%emt 0:07:46]} 17. hxg6 {[%emt 0:05:34]} hxg6 {[%emt 0:01:45]} 18. Bh6 {[%emt 0:04:39]} Qc5 {[%emt 0:12:58]} 19. Be3 {[%emt 0:09:08]} Nxf3+ {[%emt 0:03:28]} 20. gxf3 {[%emt 0:00:41]} Qc4 {[%emt 0:02:22]} 21. Nce2 {[%emt 0:01:53]} e5 {[%emt 0:04:05]} 22. b3 {[%emt 0:00:22]} Qc7 {[%emt 0:00:48]} 23. Nf5 {[%emt 0:00:30]} d5 {[%emt 0:00:17]} 24. Qf1 {[%emt 0:02:01]} dxe4 {[%emt 0:01:09]} 25. Qh3 {[%emt 0:00:35]} Bc8 {[%emt 0:01:06]} 26. fxe4 {[%emt 0:02:20]} Nxe4 {[%emt 0:00:34]} 27. Rg2 {[%emt 0:00:19]} Ng5 {[%emt 0:00:57]} 28. Bxg5 {[%emt 0:00:48]} Bxf5 {[%emt 0:00:11]} 29. Qxf5 {[%emt 0:00:30]} gxf5 {[%emt 0:00:53]} 30. Bxe7+ {[%emt 0:00:03]} Kh8 {[%emt 0:00:27]} 31. Rh2+ {[%emt 0:00:03]} Kg7 {[%emt 0:00:10]} 32. Rg2+ {[%emt 0:00:01]} Kh7 {[%emt 0:00:24]} 33. Rh2+ {[%emt 0:00:02]} Kg6 {[%emt 0:00:09]} 34. Rg2+ {[%emt 0:00:04]} Kh7 {[%emt 0:00:36]} 35. Rh2+ {[%emt 0:00:18]} Kg6 {[%emt 0:00:01]} 36. Rg2+ {[%emt 0:00:03]} Kh5 {[%emt 0:00:46]} 37. Ng3+ {[%emt 0:02:21]} Kg4 {[%emt 0:00:11]} 38. f3+ {[%emt 0:00:31]} Kh3 {[%emt 0:01:15]} 39. Nxf5 {[%emt 0:01:29]} Rg8 {[%emt 0:00:06]} 40. Bg5 {[%emt 0:00:04]} Rxg5 {[%emt 0:01:23]} 41. Rxg5 {[%emt 0:00:03]} e4 {[%emt 0:00:36]} 42. Rh5# {[%emt 0:00:03]} 1-0

[Event "68th Warsaw-ch-A 2019"]
[Site "Warsaw"]
[Date "2019.11.19"]
[Round "9.6"]
[White "Sadowski, Miroslaw"]
[Black "Cyra, Dariusz"]
[Result "1/2-1/2"]
[ECO "A46"]
[WhiteElo "1998"]
[BlackElo "1818"]
[Annotator "NA"]
[PlyCount "63"]
[EventDate "2019.11.14"]
[EventType "swiss"]
[EventCountry "POL"]
[SourceTitle "playchess.com"]
[Source "ChessBase"]
[SourceQuality "1"]
[TimeControl "5400+30"]

1. d4 {[%emt 0:00:00]} Nf6 {[%emt 0:02:14]} 2. Nf3 {[%emt 0:00:06]} e6 {[%emt 0:00:24]} 3. Bf4 {[%emt 0:00:08]} d5 {[%emt 0:00:11]} 4. e3 {[%emt 0:00:10]} c5 {[%emt 0:00:21]} 5. Be2 {[%emt 0:00:06]} Nc6 {[%emt 0:00:49]} 6. O-O {[%emt 0:00:38] D02: 1 d4 d5 2 Nf3 sidelines, including 2...Nf6 3 g3 and 2...Nf6 3 Bf4} Bd6 {[%emt 0:00:16]} (6... Be7 7. dxc5 Bxc5 8. c4 O-O 9. Nc3 dxc4 10. Bxc4 Qxd1 11. Rfxd1 b6 12. Ng5 Be7 13. Nge4 Rd8 14. Bb5 Bb7 15. Nd6 Bxd6 16. Bxd6 Rac8 17. f3 a6 18. Be2 {0-1 (47) Rapport,R (2700)-Aronian,L (2797) Caleta 2018}) 7. Bxd6 {[%emt 0:01:06]} Qxd6 {[%emt 0:00:04]} 8. c4 {[%emt 0:00:08]} O-O {[%emt 0:02:19]} 9. Nc3 {[%emt 0:07:47]} dxc4 {[%emt 0:11:09]} 10. Bxc4 {[%emt 0:01:52]} a6 {[%emt 0:13:31]} 11. a4 {[%emt 0:01:12]} cxd4 {[%emt 0:09:11]} 12. Nxd4 {[%emt 0:03:31]} e5 $146 {[%emt 0:02:44]} ({Predecessor:} 12... Nb4) 13. Nxc6 {[%emt 0:04:06]} Qxc6 {[%emt 0:00:03]} 14. Bd5 {[%emt 0:00:11]} Qc5 {[%emt 0:03:47]} 15. Rc1 {[%emt 0:09:22]} Qe7 {[%emt 0:16:01]} 16. Qb3 {[%emt 0:03:12]} Be6 {[%emt 0:05:44]} 17. Bxe6 {[%emt 0:05:39]} Qxe6 {[%emt 0:00:30]} 18. Qxe6 {[%emt 0:01:09]} fxe6 {[%emt 0:00:03]} 19. Rfd1 {[%emt 0:02:12]} Rad8 {[%emt 0:01:27]} 20. h3 {[%emt 0:01:01]} Kf7 {[%emt 0:01:33]} 21. Kf1 $11 {[%emt 0:00:07]} Ke7 {[%emt 0:00:12]} 22. Ke2 {[%emt 0:00:08]} Rxd1 {[%emt 0:01:19]} 23. Rxd1 {[%emt 0:00:13]} Rc8 {[%emt 0:00:22]} 24. Rd2 {[%emt 0:04:04]} Rc4 {[%emt 0:01:15]} 25. Kd3 {[%emt 0:03:00]} Rb4 {[%emt 0:01:06]} 26. Kc2 {[%emt 0:00:27]} Nd7 {[%emt 0:00:49]} 27. Kb1 {[%emt 0:07:08]} Nc5 {[%emt 0:00:38]} 28. Ka2 {[%emt 0:08:51]} a5 {[%emt 0:05:41]} 29. Ka3 {[%emt 0:00:50]} Rb3+ {[%emt 0:00:38]} 30. Ka2 {[%emt 0:00:03]} Rb4 {[%emt 0:00:25]} 31. Ka3 {[%emt 0:00:04]} Rb3+ {[%emt 0:03:23]} 32. Ka2 {[%emt 0:00:10]} 1/2-1/2

[Event "68th Warsaw-ch-A 2019"]
[Site "Warsaw"]
[Date "2019.11.19"]
[Round "9.7"]
[White "Jakubowska, Anna"]
[Black "Pichurko, Jakub"]
[Result "1-0"]
[ECO "B03"]
[WhiteElo "2112"]
[BlackElo "1877"]
[Annotator "ChessBase"]
[PlyCount "66"]
[EventDate "2019.11.14"]
[EventType "swiss"]
[EventCountry "POL"]
[SourceTitle "playchess.com"]
[Source "ChessBase"]
[SourceQuality "1"]
[TimeControl "5400+30"]

1. e4 {[%emt 0:00:00]} Nf6 {[%emt 0:00:00]} 2. e5 {[%emt 0:00:25]} Nd5 {[%emt 0:00:00]} 3. d4 {[%emt 0:00:09]} d6 {[%emt 0:00:08]} 4. c4 {[%emt 0:00:27]} Nb6 {[%emt 0:00:02]} 5. exd6 {[%emt 0:00:30]} cxd6 {[%emt 0:00:14]} 6. Nc3 {[%emt 0:01:19]} g6 {[%emt 0:00:49]} 7. Be3 {[%emt 0:00:22]} Bg7 {[%emt 0:00:09]} 8. Rc1 {[%emt 0:00:23]} O-O {[%emt 0:00:16]} 9. b3 {[%emt 0:00:30]} e5 {[%emt 0:09:31]} 10. dxe5 {[%emt 0:05:25]} dxe5 {[%emt 0:00:17]} 11. c5 {[%emt 0:04:04]} N6d7 {[%emt 0:04:53]} 12. Nf3 {[%emt 0:04:35]} Nc6 {[%emt 0:04:49]} 13. Bc4 {[%emt 0:11:50]} Qa5 {[%emt 0:06:52]} 14. O-O {[%emt 0:03:55]} Nxc5 {[%emt 0:16:55]} 15. Ng5 {[%emt 0:05:40]} Nd4 {[%emt 0:08:46]} 16. b4 {[%emt 0:00:42]} Qxb4 {[%emt 0:03:18]} 17. Nd5 {[%emt 0:00:07]} Qa4 {[%emt 0:05:54]} 18. Ne7+ {[%emt 0:00:16]} Kh8 {[%emt 0:00:17]} 19. Bxd4 {[%emt 0:03:29]} Qxd1 {[%emt 0:04:58]} 20. Rfxd1 {[%emt 0:00:34]} exd4 {[%emt 0:00:25]} 21. Nxf7+ {[%emt 0:00:08]} Rxf7 {[%emt 0:00:15]} 22. Bxf7 {[%emt 0:00:05]} b6 {[%emt 0:00:44]} 23. Bd5 {[%emt 0:02:01]} Rb8 {[%emt 0:03:28]} 24. Nc6 {[%emt 0:00:44]} Rb7 {[%emt 0:04:13]} 25. Nxd4 {[%emt 0:00:49]} Rd7 {[%emt 0:04:28]} 26. Nb3 {[%emt 0:01:10]} Rd8 {[%emt 0:09:00]} 27. Nxc5 {[%emt 0:01:52]} bxc5 {[%emt 0:01:28]} 28. Rxc5 {[%emt 0:00:22]} Bg4 {[%emt 0:01:53]} 29. Bf3 {[%emt 0:04:53]} Rxd1+ {[%emt 0:02:48]} 30. Bxd1 {[%emt 0:00:04]} Bf5 {[%emt 0:01:43]} 31. Bc2 {[%emt 0:02:34]} Bg4 {[%emt 0:01:47]} 32. h3 {[%emt 0:00:20]} Be6 {[%emt 0:01:05]} 33. Rc6 {[%emt 0:00:36]} Bd7 1-0

[Event "68th Warsaw-ch-A 2019"]
[Site "Warsaw"]
[Date "2019.11.19"]
[Round "9.8"]
[White "Janeczko, Jakub"]
[Black "Poniewierski, Piotr"]
[Result "1/2-1/2"]
[ECO "B42"]
[WhiteElo "1839"]
[BlackElo "1858"]
[Annotator "NA"]
[PlyCount "108"]
[EventDate "2019.11.14"]
[EventType "swiss"]
[EventCountry "POL"]
[SourceTitle "playchess.com"]
[Source "ChessBase"]
[SourceQuality "1"]
[TimeControl "5400+30"]

1. e4 {[%emt 0:12:35]} c5 {[%emt 0:00:00]} 2. Nf3 {[%emt 0:00:40]} e6 {[%emt 0:00:00]} 3. d4 {[%emt 0:00:04]} cxd4 {[%emt 0:00:01]} 4. Nxd4 {[%emt 0:00:04]} a6 {[%emt 0:00:13]} 5. Bd3 {[%emt 0:04:20]} Nf6 {[%emt 0:00:28]} 6. O-O {[%emt 0:01:59]} Qc7 {[%emt 0:00:26]} 7. Nd2 {[%emt 0:01:36]} g6 {[%emt 0:01:38] B42: Sicilian: Kan Variation: 5 Bd3} (7... Bc5 8. N4b3 Be7 9. f4 d6 10. Nf3 Nc6 11. c3 O-O 12. Qe2 b6 13. Bd2 Bb7 14. Rae1 Nd7 15. Nbd4 {1-0 (58) Fedoseev,V (2662)-Yu,Y (2675) Dubai 2014}) 8. c3 {[%emt 0:06:17]} (8. Qf3 $14 Be7 9. Nc4) 8... Bg7 {[%emt 0:00:22]} 9. f4 {[%emt 0:03:06]} d6 {[%emt 0:00:16]} 10. N2f3 {[%emt 0:04:09]} Nbd7 {[%emt 0:09:14]} 11. Qe2 {[%emt 0:02:46]} O-O {[%emt 0:01:05]} 12. h3 $146 {[%emt 0:00:48]} ({Predecessor:} 12. Nb3 b5 13. Be3 {1-0 (71) Kaskevich,R (1874)-Sadykova,A (2109) Tomsk 2009}) 12... Nc5 {[%emt 0:07:27]} 13. Bc2 {[%emt 0:00:50]} d5 {[%emt 0:05:11]} 14. e5 {[%emt 0:03:58]} Nfe4 {[%emt 0:00:26]} 15. Qe1 {[%emt 0:00:59]} Bd7 {[%emt 0:04:02]} 16. b4 {[%emt 0:06:10]} Na4 {[%emt 0:03:36]} 17. Bxe4 {[%emt 0:03:03]} dxe4 {[%emt 0:00:10]} 18. Qxe4 {[%emt 0:00:06]} Nxc3 {[%emt 0:01:05]} 19. Qc2 {[%emt 0:02:00]} Rfc8 {[%emt 0:00:38]} 20. Bb2 {[%emt 0:01:39]} Nd5 {[%emt 0:01:14]} 21. Qd2 {[%emt 0:02:05]} Qb6 {[%emt 0:04:06]} 22. a3 {[%emt 0:01:38]} a5 {[%emt 0:00:37]} 23. bxa5 {[%emt 0:00:41]} Qxa5 {[%emt 0:01:21]} 24. Qxa5 {[%emt 0:00:51]} Rxa5 {[%emt 0:00:11]} 25. g3 {[%emt 0:00:30]} Bf8 {[%emt 0:01:17]} 26. Nd2 {[%emt 0:09:53]} Rca8 {[%emt 0:06:01]} 27. Rf3 {[%emt 0:07:28]} b5 {[%emt 0:05:20]} 28. h4 {[%emt 0:05:08]} Ra4 {[%emt 0:02:30]} 29. N2b3 {[%emt 0:03:14]} ({White should play} 29. Ne4 $15) 29... Bxa3 {[%emt 0:03:16]} 30. Rxa3 {[%emt 0:00:12]} Rxa3 {[%emt 0:00:13]} 31. Bxa3 {[%emt 0:00:08]} Rxa3 {[%emt 0:00:10]} 32. Nc5 {[%emt 0:00:07]} Rxf3 {[%emt 0:08:45]} 33. Nxf3 {[%emt 0:00:02]} Be8 {[%emt 0:03:33]} 34. Kf2 {[%emt 0:00:31]} Kf8 {[%emt 0:02:08]} 35. Ke2 {[%emt 0:00:18]} Ke7 {[%emt 0:01:09]} 36. Kd3 {[%emt 0:00:33]} h6 {[%emt 0:04:32]} 37. Nd4 {[%emt 0:00:23]} b4 {[%emt 0:03:35]} 38. Kc4 $11 {[%emt 0:01:24]} Bd7 {[%emt 0:02:33]} 39. Nd3 {[%emt 0:00:57]} Ne3+ {[%emt 0:07:01]} 40. Kxb4 {[%emt 0:00:08]} Nf1 {[%emt 0:00:42]} 41. g4 {[%emt 0:01:40]} Ne3 {[%emt 0:00:44]} 42. g5 {[%emt 0:05:11]} h5 {[%emt 0:00:19]} 43. Kc3 {[%emt 0:03:15]} Ng2 {[%emt 0:01:20]} 44. Kd2 {[%emt 0:00:47]} Nxh4 {[%emt 0:00:20]} 45. Ke3 {[%emt 0:00:13]} Nf5+ {[%emt 0:00:37]} 46. Nxf5+ {[%emt 0:00:39]} exf5 {[%emt 0:00:26]} 47. Nc5 {[%emt 0:00:30]} Bc6 {[%emt 0:00:37]} 48. Nd3 {[%emt 0:02:13]} h4 {[%emt 0:02:31]} 49. Kf2 {[%emt 0:01:07]} Be4 {[%emt 0:00:44]} 50. Nc5 {[%emt 0:01:01]} Bd5 {[%emt 0:00:24]} 51. Kg1 {[%emt 0:00:20]} h3 {[%emt 0:01:26]} 52. Kh2 {[%emt 0:00:04]} Bg2 {[%emt 0:00:07]} 53. Kg3 {[%emt 0:00:13]} Bf1 {[%emt 0:02:41]} 54. Kh2 {[%emt 0:00:08]} Bg2 {[%emt 0:00:50]} 1/2-1/2